[Event "European Rapid Championship 2021"]
[Site "Katowice"]
[Date "2021.12.19"]
[Round "7.4"]
[White "Sumets, Andrey"]
[Black "Karpus, Michal"]
[Result "1-0"]
[ECO "D37"]
[WhiteElo "2508"]
[BlackElo "2185"]
[Annotator "ChessBase"]
[PlyCount "89"]
[EventDate "2021.12.18"]
[EventType "swiss"]
[EventCountry "POL"]
[SourceTitle "playchess.com"]
[Source "ChessBase"]
[SourceQuality "1"]
[TimeControl "900+10"]

1. d4 {[%emt 0:00:02]} Nf6 {[%emt 0:00:01]} 2. Nf3 {[%emt 0:00:01]} d5 {
[%emt 0:00:22]} 3. c4 {[%emt 0:00:04]} e6 {[%emt 0:00:03]} 4. Nc3 {[%emt 0:00:
20]} Nbd7 {[%emt 0:00:10]} 5. e3 {[%emt 0:00:25]} Bd6 {[%emt 0:00:35]} 6. Qc2 {
[%emt 0:00:41]} c6 {[%emt 0:00:32]} 7. Bd3 {[%emt 0:00:18]} O-O {[%emt 0:00:37]
} 8. O-O {[%emt 0:00:03]} Qe7 {[%emt 0:00:12]} 9. c5 {[%emt 0:00:09]} Bc7 {
[%emt 0:00:35]} 10. e4 {[%emt 0:00:02]} e5 {[%emt 0:02:10]} 11. exd5 {[%emt 0:
00:34]} cxd5 {[%emt 0:00:09]} 12. Re1 {[%emt 0:01:52]} Qe6 {[%emt 0:04:42]} 13.
Bf5 {[%emt 0:03:52]} Qe8 {[%emt 0:01:39]} 14. Bxd7 {[%emt 0:01:02]} Nxd7 {
[%emt 0:04:13]} 15. Nxd5 {[%emt 0:00:05]} Qd8 {[%emt 0:00:49]} 16. Nxc7 {
[%emt 0:02:54]} Qxc7 {[%emt 0:00:03]} 17. Nxe5 {[%emt 0:00:06]} Nxe5 {[%emt 0:
00:17]} 18. Rxe5 {[%emt 0:00:03]} Be6 {[%emt 0:00:06]} 19. Bf4 {[%emt 0:00:20]}
Qc6 {[%emt 0:00:04]} 20. Qe4 {[%emt 0:01:14]} Rfd8 {[%emt 0:00:08]} 21. Qe3 {
[%emt 0:03:38]} Qa4 {[%emt 0:00:26]} 22. Rxe6 {[%emt 0:00:04]} fxe6 {[%emt 0:
00:04]} 23. Qxe6+ {[%emt 0:00:01]} Kh8 {[%emt 0:00:12]} 24. Be5 {[%emt 0:00:01]
} Qb4 {[%emt 0:00:23]} 25. Qb3 {[%emt 0:00:09]} Qxb3 {[%emt 0:00:28]} 26. axb3
{[%emt 0:00:01]} a6 {[%emt 0:00:01]} 27. f4 {[%emt 0:00:07]} Kg8 {[%emt 0:00:
03]} 28. Kf2 {[%emt 0:00:01]} Kf7 {[%emt 0:00:14]} 29. Ke3 {[%emt 0:00:01]} Ke6
{[%emt 0:00:05]} 30. Ke4 {[%emt 0:00:04]} g6 {[%emt 0:00:02]} 31. g4 {[%emt 0:
00:01]} Kd7 {[%emt 0:00:31]} 32. d5 {[%emt 0:00:10]} Rf8 {[%emt 0:00:04]} 33.
b4 {[%emt 0:00:04]} Rae8 {[%emt 0:00:20]} 34. b5 {[%emt 0:00:19]} axb5 {
[%emt 0:00:01]} 35. Ra7 {[%emt 0:00:01]} Kc8 {[%emt 0:00:18]} 36. c6 {[%emt 0:
00:03]} bxc6 {[%emt 0:00:06]} 37. dxc6 {[%emt 0:00:01]} Kd8 {[%emt 0:00:04]}
38. Rxh7 {[%emt 0:00:37]} Re7 {[%emt 0:00:07]} 39. c7+ {[%emt 0:00:49]} Kd7 {
[%emt 0:00:01]} 40. Rxe7+ {[%emt 0:00:01]} Kxe7 {[%emt 0:00:01]} 41. h4 {
[%emt 0:00:08]} b4 {[%emt 0:00:40]} 42. h5 {[%emt 0:00:12]} gxh5 {[%emt 0:00:
03]} 43. gxh5 {[%emt 0:00:01]} b3 {[%emt 0:00:18]} 44. h6 {[%emt 0:00:06]} Rf7
{[%emt 0:00:09]} 45. c8=Q {[%emt 0:00:13]} 1-0

[Event "European Rapid Championship 2021"]
[Site "Katowice"]
[Date "2021.12.19"]
[Round "7.4"]
[White "Kos, Pawel"]
[Black "Warchol, Bartosz"]
[Result "1-0"]
[ECO "D02"]
[WhiteElo "2199"]
[BlackElo "1942"]
[Annotator "NA"]
[PlyCount "73"]
[EventDate "2021.12.18"]
[EventType "swiss"]
[EventCountry "POL"]
[SourceTitle "playchess.com"]
[Source "ChessBase"]
[SourceQuality "1"]
[TimeControl "900+10"]

1. d4 {[%emt 0:00:01]} d5 {[%emt 0:00:03]} 2. Nf3 {[%emt 0:00:02]} Nf6 {
[%emt 0:00:06]} 3. g3 {[%emt 0:00:01]} c5 {[%emt 0:00:06]} 4. Bg2 {[%emt 0:00:
02]} Nc6 {[%emt 0:00:09]} 5. O-O {[%emt 0:00:05]} Bf5 {[%emt 0:00:12]} 6. c4 {
[%emt 0:00:17]} dxc4 {[%emt 0:00:56]} 7. Qa4 {[%emt 0:00:46]} Qa5 {[%emt 0:01:
12]} 8. Qxc4 {[%emt 0:00:47]} e6 {[%emt 0:00:17]} 9. Nc3 {[%emt 0:02:20]} Be7 {
[%emt 0:02:06]} 10. Ne5 {[%emt 0:05:25]} Rc8 {[%emt 0:05:11]} 11. Nxc6 {
[%emt 0:00:51]} bxc6 {[%emt 0:00:04]} 12. dxc5 {[%emt 0:00:26]} Qxc5 {[%emt 0:
00:28]} 13. Qa4 {[%emt 0:00:32]} O-O {[%emt 0:02:05]} 14. Be3 {[%emt 0:00:06]}
Qb4 {[%emt 0:01:05]} 15. Qxb4 {[%emt 0:01:08]} Bxb4 {[%emt 0:00:02]} 16. Bxa7 {
[%emt 0:00:01]} Nd5 {[%emt 0:00:36]} 17. e4 {[%emt 0:00:35]} Nxc3 {[%emt 0:01:
07]} 18. bxc3 {[%emt 0:00:04]} Bxc3 {[%emt 0:00:25]} 19. exf5 {[%emt 0:00:01]}
Bxa1 {[%emt 0:00:03]} 20. Rxa1 {[%emt 0:00:02]} exf5 {[%emt 0:00:02]} 21. Bc5 {
[%emt 0:00:11]} Rfd8 {[%emt 0:01:14]} 22. a4 {[%emt 0:00:03]} Rd2 {[%emt 0:00:
39]} 23. a5 {[%emt 0:00:04]} Rc2 {[%emt 0:00:02]} 24. Be3 {[%emt 0:00:03]} Kf8
{[%emt 0:00:21]} 25. a6 {[%emt 0:00:03]} Ke7 {[%emt 0:00:18]} 26. a7 {[%emt 0:
00:04]} Ra8 {[%emt 0:00:01]} 27. Rb1 {[%emt 0:00:28]} Ra2 {[%emt 0:00:14]} 28.
Bxc6 {[%emt 0:00:03]} R8xa7 {[%emt 0:00:10]} 29. Bxa7 {[%emt 0:00:01]} Rxa7 {
[%emt 0:00:02]} 30. Rb7+ {[%emt 0:00:02]} Rxb7 {[%emt 0:00:05]} 31. Bxb7 {
[%emt 0:00:01]} Kf6 {[%emt 0:00:14]} 32. Kg2 {[%emt 0:00:17]} Ke5 {[%emt 0:00:
19]} 33. Kf3 {[%emt 0:00:06]} h6 {[%emt 0:00:03]} 34. Ke3 {[%emt 0:00:03]} g5 {
[%emt 0:00:04]} 35. f4+ {[%emt 0:00:04]} Kf6 {[%emt 0:00:06]} 36. Bd5 {[%emt 0:
00:09]} h5 {[%emt 0:00:08]} 37. h4 {[%emt 0:00:35]} 1-0

[Event "European Rapid Championship 2021"]
[Site "Katowice"]
[Date "2021.12.19"]
[Round "7.5"]
[White "Mirzoev, Emil"]
[Black "Schneider, Ilja"]
[Result "1-0"]
[ECO "C24"]
[WhiteElo "2418"]
[BlackElo "2490"]
[Annotator "ChessBase"]
[PlyCount "83"]
[EventDate "2021.12.18"]
[EventType "swiss"]
[EventCountry "POL"]
[SourceTitle "playchess.com"]
[Source "ChessBase"]
[SourceQuality "1"]
[TimeControl "900+10"]

1. e4 {[%emt 0:00:57]} e5 {[%emt 0:00:20]} 2. Bc4 {[%emt 0:00:07]} Nf6 {
[%emt 0:00:02]} 3. d3 {[%emt 0:00:01]} c6 {[%emt 0:00:03]} 4. Bb3 {[%emt 0:00:
15]} d5 {[%emt 0:00:19]} 5. Nf3 {[%emt 0:00:01]} Bb4+ {[%emt 0:00:06]} 6. Bd2 {
[%emt 0:00:31]} Bxd2+ {[%emt 0:00:05]} 7. Nbxd2 {[%emt 0:00:18]} Nbd7 {[%emt 0:
03:07]} 8. O-O {[%emt 0:00:10]} O-O {[%emt 0:00:02]} 9. Re1 {[%emt 0:00:39]}
Re8 {[%emt 0:00:38]} 10. d4 {[%emt 0:00:19]} exd4 {[%emt 0:02:37]} 11. exd5 {
[%emt 0:00:07]} Rxe1+ {[%emt 0:00:36]} 12. Qxe1 {[%emt 0:00:09]} Nxd5 {[%emt 0:
00:26]} 13. Bxd5 {[%emt 0:00:14]} cxd5 {[%emt 0:00:01]} 14. Nxd4 {[%emt 0:00:
12]} Nf6 {[%emt 0:00:06]} 15. N2b3 {[%emt 0:02:58]} Bd7 {[%emt 0:00:46]} 16.
Qb4 {[%emt 0:01:15]} a5 {[%emt 0:01:55]} 17. Qxb7 {[%emt 0:01:45]} a4 {[%emt 0:
00:20]} 18. Nc5 {[%emt 0:00:20]} Rb8 {[%emt 0:00:02]} 19. Qa7 {[%emt 0:01:06]}
Ra8 {[%emt 0:00:44]} 20. Qb7 {[%emt 0:00:01]} Rb8 {[%emt 0:00:01]} 21. Qa6 {
[%emt 0:00:20]} Rxb2 {[%emt 0:00:08]} 22. Re1 {[%emt 0:01:11]} h6 {[%emt 0:00:
30]} 23. a3 {[%emt 0:00:35]} Ra2 {[%emt 0:01:49]} 24. Qd3 {[%emt 0:01:40]} Ne4
{[%emt 0:01:00]} 25. Na6 {[%emt 0:01:04]} Qf6 {[%emt 0:00:16]} 26. f3 {[%emt 0:
00:28]} Nd6 {[%emt 0:02:22]} 27. Nb4 {[%emt 0:00:17]} Rxa3 {[%emt 0:00:15]} 28.
Qxa3 {[%emt 0:00:29]} Qxd4+ 29. Kh1 {[%emt 0:00:02]} Qd2 {[%emt 0:00:32]} 30.
Rb1 {[%emt 0:00:04]} Nc4 {[%emt 0:00:32]} 31. Qd3 {[%emt 0:00:06]} Qxd3 32.
cxd3 {[%emt 0:00:12]} Ne3 {[%emt 0:00:15]} 33. Kg1 {[%emt 0:00:50]} g5 {
[%emt 0:00:03]} 34. Kf2 {[%emt 0:00:07]} d4 {[%emt 0:00:03]} 35. Rc1 {[%emt 0:
00:01]} Be6 {[%emt 0:00:12]} 36. Nc6 {[%emt 0:00:29]} Nd5 {[%emt 0:00:30]} 37.
Nxd4 {[%emt 0:00:08]} Nb4 {[%emt 0:00:01]} 38. Ke2 {[%emt 0:00:25]} Bd5 {
[%emt 0:00:22]} 39. Ra1 {[%emt 0:00:17]} Na2 {[%emt 0:00:14]} 40. Kd2 {[%emt 0:
00:03]} Kg7 {[%emt 0:00:05]} 41. Ne2 {[%emt 0:00:48]} a3 {[%emt 0:00:11]} 42.
Nd4 {[%emt 0:00:01]} 1-0

[Event "European Rapid Championship 2021"]
[Site "Katowice"]
[Date "2021.12.19"]
[Round "7.5"]
[White "Karolczuk, Iwo"]
[Black "Danielyan, Vahe"]
[Result "1-0"]
[ECO "A62"]
[WhiteElo "2007"]
[BlackElo "2198"]
[Annotator "NA"]
[PlyCount "115"]
[EventDate "2021.12.18"]
[EventType "swiss"]
[EventCountry "POL"]
[SourceTitle "playchess.com"]
[Source "ChessBase"]
[SourceQuality "1"]
[TimeControl "900+10"]

1. d4 {[%emt 0:00:04]} Nf6 {[%emt 0:00:13]} 2. c4 {[%emt 0:00:02]} e6 {[%emt 0:
00:02]} 3. g3 {[%emt 0:00:02]} c5 {[%emt 0:01:00]} 4. d5 {[%emt 0:00:02]} exd5
{[%emt 0:00:02]} 5. cxd5 {[%emt 0:00:02]} d6 {[%emt 0:00:02]} 6. Nc3 {[%emt 0:
00:02]} g6 {[%emt 0:00:01]} 7. Bg2 {[%emt 0:00:04]} Bg7 {[%emt 0:00:01]} 8. Nf3
{[%emt 0:00:01]} O-O {[%emt 0:00:03]} 9. O-O {[%emt 0:00:05]} Re8 {[%emt 0:00:
38]} 10. Bf4 {[%emt 0:00:43]} Ne4 {[%emt 0:00:27]} 11. Rc1 {[%emt 0:01:11]}
Nxc3 {[%emt 0:00:57]} 12. bxc3 {[%emt 0:00:02]} b5 {[%emt 0:00:15]} 13. Nd2 {
[%emt 0:00:35]} a5 {[%emt 0:00:02]} 14. Ne4 {[%emt 0:02:11]} Ra6 {[%emt 0:00:
01]} 15. Qd2 {[%emt 0:04:42]} Bf5 {[%emt 0:00:18]} 16. Ng5 {[%emt 0:00:04]} h6
{[%emt 0:02:11]} 17. Nf3 {[%emt 0:00:07]} g5 {[%emt 0:00:26]} 18. Be3 {[%emt 0:
00:04]} Nd7 {[%emt 0:00:02]} 19. h4 {[%emt 0:00:11]} f6 {[%emt 0:00:01]} 20.
Rfd1 {[%emt 0:02:04]} Nb6 {[%emt 0:00:18]} 21. Qb2 {[%emt 0:00:19]} Qd7 {
[%emt 0:00:09]} 22. Nd2 {[%emt 0:00:05]} Bg6 {[%emt 0:00:42]} 23. Kh2 {[%emt 0:
00:18]} b4 {[%emt 0:00:47]} 24. cxb4 {[%emt 0:00:58]} axb4 {[%emt 0:00:16]} 25.
Nc4 {[%emt 0:00:08]} Nxc4 {[%emt 0:00:28]} 26. Rxc4 {[%emt 0:00:13]} Rea8 {
[%emt 0:00:52]} 27. Bxc5 {[%emt 0:02:06]} dxc5 {[%emt 0:00:58]} 28. Rxc5 {
[%emt 0:00:02]} Qd6 {[%emt 0:00:13]} 29. Rdc1 {[%emt 0:00:29]} gxh4 {[%emt 0:
00:28]} 30. Qxb4 {[%emt 0:00:08]} hxg3+ {[%emt 0:00:03]} 31. fxg3 {[%emt 0:00:
02]} Kh7 {[%emt 0:00:06]} 32. Be4 {[%emt 0:00:40]} f5 {[%emt 0:00:12]} 33. Bf3
{[%emt 0:00:01]} Rxa2 {[%emt 0:00:12]} 34. Qf4 {[%emt 0:01:09]} Qxf4 {[%emt 0:
02:17]} 35. gxf4 {[%emt 0:00:02]} Rd2 {[%emt 0:00:01]} 36. Rc7 {[%emt 0:00:42]}
h5 {[%emt 0:00:22]} 37. Rg1 {[%emt 0:00:19]} Rg8 {[%emt 0:01:58]} 38. Rg5 {
[%emt 0:00:03]} Rd4 {[%emt 0:02:25]} 39. Bxh5 {[%emt 0:00:25]} Rxf4 {[%emt 0:
01:26]} 40. Bxg6+ {[%emt 0:00:59]} Kh6 {[%emt 0:00:17]} 41. Rg3 {[%emt 0:00:12]
} Rh4+ {[%emt 0:00:35]} 42. Kg2 {[%emt 0:00:13]} Rf8 {[%emt 0:00:03]} 43. Bxf5
{[%emt 0:00:09]} Rxf5 {[%emt 0:00:12]} 44. Rgxg7 {[%emt 0:00:15]} Rxd5 {
[%emt 0:00:10]} 45. Rh7+ {[%emt 0:00:02]} Kg5 {[%emt 0:00:01]} 46. Rxh4 {
[%emt 0:00:11]} Kxh4 {[%emt 0:00:02]} 47. Rg7 {[%emt 0:00:08]} Kh5 {[%emt 0:00:
21]} 48. Kf3 {[%emt 0:00:11]} Kh6 {[%emt 0:00:15]} 49. Rg1 {[%emt 0:00:06]} Kh7
{[%emt 0:00:09]} 50. e4 {[%emt 0:00:02]} Rd6 {[%emt 0:00:09]} 51. Kf4 {[%emt 0:
00:15]} Ra6 {[%emt 0:00:05]} 52. Kf5 {[%emt 0:00:08]} Ra7 {[%emt 0:00:15]} 53.
e5 {[%emt 0:00:04]} Kh8 {[%emt 0:00:03]} 54. e6 {[%emt 0:00:06]} Rg7 {[%emt 0:
00:02]} 55. Rxg7 {[%emt 0:00:36]} Kxg7 {[%emt 0:00:01]} 56. Ke5 {[%emt 0:00:01]
} Kf8 {[%emt 0:00:02]} 57. Kf6 {[%emt 0:00:02]} Ke8 {[%emt 0:00:01]} 58. e7 {
[%emt 0:00:01]} 1-0

[Event "European Rapid Championship 2021"]
[Site "Katowice"]
[Date "2021.12.19"]
[Round "7.6"]
[White "Cukrowski, Filip"]
[Black "Derejczyk, Mateusz"]
[Result "1/2-1/2"]
[ECO "A06"]
[WhiteElo "2373"]
[BlackElo "1520"]
[Annotator "NA"]
[PlyCount "117"]
[EventDate "2021.12.18"]
[EventType "swiss"]
[EventCountry "POL"]
[SourceTitle "playchess.com"]
[Source "ChessBase"]
[SourceQuality "1"]
[TimeControl "900+10"]

1. Nf3 {[%emt 0:01:33]} d5 {[%emt 0:00:02]} 2. g3 {[%emt 0:00:01]} Bg4 {
[%emt 0:00:02]} 3. Bg2 {[%emt 0:00:01]} c6 {[%emt 0:00:03]} 4. d4 {[%emt 0:00:
01]} Nf6 {[%emt 0:00:03]} 5. O-O {[%emt 0:00:03]} Bxf3 {[%emt 0:00:10]} 6. Bxf3
{[%emt 0:00:04]} Nbd7 {[%emt 0:00:06]} 7. c4 {[%emt 0:00:22]} e6 {[%emt 0:00:
24]} 8. Nc3 {[%emt 0:00:03]} dxc4 {[%emt 0:00:21]} 9. a4 {[%emt 0:00:23]} Nd5 {
[%emt 0:00:23]} 10. e3 {[%emt 0:00:16]} N7f6 {[%emt 0:00:41]} 11. Qe2 {[%emt 0:
00:19]} Be7 {[%emt 0:00:59]} 12. Qxc4 {[%emt 0:00:03]} O-O {[%emt 0:00:02]} 13.
Rd1 {[%emt 0:00:58]} Qa5 {[%emt 0:00:47]} 14. Bd2 {[%emt 0:00:48]} Nxc3 {
[%emt 0:00:29]} 15. Bxc3 {[%emt 0:00:07]} Qf5 {[%emt 0:00:06]} 16. Bg2 {
[%emt 0:00:20]} Ne4 {[%emt 0:00:35]} 17. Be1 {[%emt 0:00:02]} Qd5 {[%emt 0:01:
42]} 18. Qc2 {[%emt 0:00:58]} f5 {[%emt 0:00:20]} 19. f3 {[%emt 0:00:35]} Nd6 {
[%emt 0:00:57]} 20. Bb4 {[%emt 0:01:13]} Rf7 {[%emt 0:01:19]} 21. Rac1 {
[%emt 0:03:19]} Rd8 {[%emt 0:02:23]} 22. b3 {[%emt 0:00:34]} Nc8 {[%emt 0:01:
01]} 23. Bc3 {[%emt 0:00:15]} Qd7 {[%emt 0:01:15]} 24. Qe2 {[%emt 0:00:10]}
Rdf8 25. a5 a6 {[%emt 0:00:32]} 26. Rf1 {[%emt 0:00:57]} Nd6 {[%emt 0:00:36]}
27. Bb4 {[%emt 0:00:42]} Nb5 {[%emt 0:00:14]} 28. Bc5 {[%emt 0:00:06]} Bxc5 {
[%emt 0:01:16]} 29. Rxc5 {[%emt 0:00:32]} Rd8 {[%emt 0:00:28]} 30. Re5 {
[%emt 0:00:54]} Rf6 {[%emt 0:01:00]} 31. g4 {[%emt 0:00:19]} f4 {[%emt 0:00:50]
} 32. g5 {[%emt 0:00:01]} Rf5 {[%emt 0:00:01]} 33. Re4 {[%emt 0:02:52]} fxe3 {
[%emt 0:00:13]} 34. Qxe3 {[%emt 0:00:02]} Nxd4 {[%emt 0:00:17]} 35. Bh3 {
[%emt 0:00:18]} Rxa5 36. Rxe6 {[%emt 0:00:28]} Qf7 {[%emt 0:01:04]} 37. Re7 {
[%emt 0:01:03]} Qg6 {[%emt 0:00:18]} 38. f4 {[%emt 0:00:11]} Nf5 {[%emt 0:00:
10]} 39. Qb6 Rad5 {[%emt 0:00:10]} 40. Re5 {[%emt 0:00:06]} Rf8 {[%emt 0:00:12]
} 41. Qxb7 {[%emt 0:00:16]} Rxe5 {[%emt 0:00:02]} 42. fxe5 {[%emt 0:00:03]}
Qxg5+ {[%emt 0:00:02]} 43. Kh1 {[%emt 0:00:04]} g6 {[%emt 0:00:27]} 44. Qxc6 {
[%emt 0:00:06]} Qe3 {[%emt 0:00:14]} 45. Bxf5 {[%emt 0:00:45]} Rxf5 {[%emt 0:
00:09]} 46. Rxf5 {[%emt 0:00:03]} gxf5 {[%emt 0:00:10]} 47. Qc8+ {[%emt 0:00:
01]} Kg7 {[%emt 0:00:01]} 48. Qxf5 {[%emt 0:00:02]} Qc1+ {[%emt 0:00:06]} 49.
Kg2 {[%emt 0:00:03]} Qb2+ {[%emt 0:00:02]} 50. Kg1 {[%emt 0:00:28]} Qc1+ {
[%emt 0:00:02]} 51. Kg2 {[%emt 0:00:19]} Qb2+ {[%emt 0:00:02]} 52. Kg1 {
[%emt 0:00:01]} Qc1+ {[%emt 0:00:01]} 53. Kf2 {[%emt 0:00:16]} Qb2+ {[%emt 0:
00:01]} 54. Ke1 {[%emt 0:00:07]} Qc3+ {[%emt 0:00:20]} 55. Ke2 {[%emt 0:00:08]}
Qb2+ {[%emt 0:00:07]} 56. Kf1 {[%emt 0:00:03]} Qc1+ {[%emt 0:00:02]} 57. Kg2 {
[%emt 0:00:04]} Qb2+ {[%emt 0:00:01]} 58. Kg1 {[%emt 0:00:35]} Qc1+ {[%emt 0:
00:01]} 59. Kg2 {[%emt 0:00:14]} 1/2-1/2

[Event "European Rapid Championship 2021"]
[Site "Katowice"]
[Date "2021.12.19"]
[Round "7.7"]
[White "Wieczorek, Oskar"]
[Black "Balog, Imre"]
[Result "0-1"]
[ECO "A21"]
[WhiteElo "2367"]
[BlackElo "2629"]
[Annotator "ChessBase"]
[PlyCount "92"]
[EventDate "2021.12.18"]
[EventType "swiss"]
[EventCountry "POL"]
[SourceTitle "playchess.com"]
[Source "ChessBase"]
[SourceQuality "1"]
[TimeControl "900+10"]

1. c4 {[%emt 0:00:01]} e5 {[%emt 0:00:05]} 2. Nc3 {[%emt 0:00:02]} Bb4 {
[%emt 0:00:30]} 3. Nd5 {[%emt 0:00:01]} Bc5 {[%emt 0:00:07]} 4. e3 {[%emt 0:00:
12]} c6 {[%emt 0:00:10]} 5. Nc3 {[%emt 0:00:02]} Nf6 {[%emt 0:00:07]} 6. Nf3 {
[%emt 0:00:44]} e4 {[%emt 0:00:47]} 7. d4 {[%emt 0:01:20]} Be7 {[%emt 0:00:21]}
8. Nd2 {[%emt 0:00:11]} d5 {[%emt 0:00:02]} 9. Be2 {[%emt 0:01:25]} O-O {
[%emt 0:00:09]} 10. g4 {[%emt 0:01:03]} Be6 {[%emt 0:00:13]} 11. g5 {[%emt 0:
01:04]} Ne8 {[%emt 0:00:06]} 12. h4 {[%emt 0:00:06]} a6 {[%emt 0:00:39]} 13. a3
{[%emt 0:02:05]} b5 {[%emt 0:00:09]} 14. cxd5 {[%emt 0:00:07]} cxd5 {[%emt 0:
00:02]} 15. b4 {[%emt 0:00:07]} a5 {[%emt 0:02:03]} 16. bxa5 {[%emt 0:01:13]}
b4 {[%emt 0:00:02]} 17. axb4 {[%emt 0:00:43]} Bxb4 {[%emt 0:00:02]} 18. Bb2 {
[%emt 0:01:42]} Rxa5 {[%emt 0:00:03]} 19. Nb3 {[%emt 0:00:23]} Rxa1 {[%emt 0:
00:07]} 20. Qxa1 {[%emt 0:00:02]} Nd7 {[%emt 0:00:27]} 21. Qa4 {[%emt 0:01:00]}
Be7 {[%emt 0:01:28]} 22. Qc6 {[%emt 0:01:43]} Nc7 {[%emt 0:02:22]} 23. Qb7 {
[%emt 0:02:25]} Qb8 {[%emt 0:00:51]} 24. Qxb8 {[%emt 0:00:04]} Rxb8 {[%emt 0:
00:02]} 25. Bd1 {[%emt 0:00:02]} Nb6 {[%emt 0:00:01]} 26. Nc5 {[%emt 0:01:11]}
Nc4 {[%emt 0:00:02]} 27. Bc1 {[%emt 0:00:11]} Bxc5 {[%emt 0:00:43]} 28. dxc5 {
[%emt 0:00:01]} Na6 {[%emt 0:00:01]} 29. c6 {[%emt 0:00:28]} Nb4 {[%emt 0:00:
08]} 30. O-O {[%emt 0:00:13]} Nxc6 {[%emt 0:00:02]} 31. Na4 {[%emt 0:00:15]}
Bh3 {[%emt 0:01:48]} 32. Re1 {[%emt 0:00:02]} N6e5 {[%emt 0:00:25]} 33. Be2 {
[%emt 0:00:01]} Nd3 {[%emt 0:00:56]} 34. Rd1 {[%emt 0:00:06]} Rb1 {[%emt 0:01:
24]} 35. Kh2 {[%emt 0:00:32]} Bf5 {[%emt 0:00:42]} 36. Nc3 {[%emt 0:00:12]}
Rxc1 {[%emt 0:00:08]} 37. Nxd5 {[%emt 0:00:02]} Rxd1 {[%emt 0:00:08]} 38. Bxd1
{[%emt 0:00:01]} Kf8 {[%emt 0:00:02]} 39. Kg3 {[%emt 0:00:01]} Nd6 {[%emt 0:00:
18]} 40. h5 {[%emt 0:00:05]} Be6 {[%emt 0:00:08]} 41. Nc3 {[%emt 0:00:01]} f5 {
[%emt 0:00:03]} 42. gxf6 {[%emt 0:00:01]} gxf6 {[%emt 0:00:01]} 43. f3 {
[%emt 0:00:05]} exf3 {[%emt 0:00:10]} 44. Kxf3 {[%emt 0:00:07]} Ne5+ {[%emt 0:
00:06]} 45. Kg3 {[%emt 0:00:06]} Kg7 {[%emt 0:00:06]} 46. Ne2 {[%emt 0:00:06]}
Bg4 {[%emt 0:00:17]} 0-1

[Event "European Rapid Championship 2021"]
[Site "Katowice"]
[Date "2021.12.19"]
[Round "7.7"]
[White "Warchol, Kamil"]
[Black "Demchenko, Anton"]
[Result "0-1"]
[ECO "B89"]
[WhiteElo "1976"]
[BlackElo "2666"]
[Annotator "ChessBase"]
[PlyCount "76"]
[EventDate "2021.12.18"]
[EventType "swiss"]
[EventCountry "POL"]
[SourceTitle "playchess.com"]
[Source "ChessBase"]
[SourceQuality "1"]
[TimeControl "900+10"]

1. e4 {[%emt 0:00:02]} c5 {[%emt 0:00:02]} 2. Nf3 {[%emt 0:00:02]} d6 {[%emt 0:
00:02]} 3. d4 {[%emt 0:00:01]} cxd4 {[%emt 0:00:01]} 4. Nxd4 {[%emt 0:00:02]}
Nf6 {[%emt 0:00:02]} 5. Nc3 {[%emt 0:00:02]} Nc6 {[%emt 0:00:01]} 6. Bc4 {
[%emt 0:00:07]} e6 {[%emt 0:00:14]} 7. Be3 {[%emt 0:00:09]} a6 {[%emt 0:00:06]}
8. Qe2 {[%emt 0:00:15]} Bd7 {[%emt 0:00:05]} 9. O-O-O {[%emt 0:00:58]} b5 {
[%emt 0:01:02]} 10. Bb3 {[%emt 0:00:10]} Na5 {[%emt 0:01:01]} 11. f3 {[%emt 0:
01:37]} h5 {[%emt 0:00:08]} 12. h3 {[%emt 0:00:32]} h4 {[%emt 0:00:24]} 13. Bg5
{[%emt 0:00:08]} Be7 {[%emt 0:00:10]} 14. e5 {[%emt 0:02:01]} dxe5 {[%emt 0:00:
30]} 15. Qxe5 {[%emt 0:00:47]} Qb8 {[%emt 0:02:11]} 16. Qe2 {[%emt 0:02:20]} b4
{[%emt 0:04:13]} 17. Bxf6 {[%emt 0:02:14]} Nxb3+ {[%emt 0:00:43]} 18. axb3 {
[%emt 0:00:31]} gxf6 {[%emt 0:01:24]} 19. Ne4 e5 {[%emt 0:00:30]} 20. Rhe1 {
[%emt 0:01:28]} Kf8 {[%emt 0:00:53]} 21. Nf2 {[%emt 0:03:29]} Bc5 {[%emt 0:00:
15]} 22. Ne4 {[%emt 0:00:20]} Be7 {[%emt 0:01:08]} 23. Nf2 {[%emt 0:00:21]} Bd8
{[%emt 0:00:46]} 24. Qc4 {[%emt 0:00:56]} Qc7 {[%emt 0:02:05]} 25. Qxc7 {
[%emt 0:00:33]} Bxc7 {[%emt 0:00:01]} 26. Ne2 {[%emt 0:00:08]} Bc6 {[%emt 0:00:
07]} 27. Nd3 {[%emt 0:00:04]} a5 {[%emt 0:00:07]} 28. Nc5 {[%emt 0:00:05]} Rg8
{[%emt 0:00:15]} 29. Nd7+ {[%emt 0:00:11]} Ke7 {[%emt 0:00:04]} 30. f4 {
[%emt 0:00:26]} Bxd7 {[%emt 0:00:03]} 31. fxe5 {[%emt 0:00:01]} Bxe5 {[%emt 0:
00:08]} 32. Nd4 {[%emt 0:00:00]} Rxg2 {[%emt 0:00:11]} 33. Nf3 {[%emt 0:00:01]}
Rc8 {[%emt 0:00:22]} 34. Nxe5 {[%emt 0:00:01]} Rcxc2+ {[%emt 0:00:03]} 35. Kb1
{[%emt 0:00:01]} Rxb2+ {[%emt 0:00:03]} 36. Ka1 {[%emt 0:00:06]} Ra2+ {[%emt 0:
00:03]} 37. Kb1 {[%emt 0:00:01]} fxe5 {[%emt 0:00:11]} 38. Rxe5+ {[%emt 0:00:
03]} Be6 {[%emt 0:00:01]} 0-1

[Event "European Rapid Championship 2021"]
[Site "Katowice"]
[Date "2021.12.19"]
[Round "7.8"]
[White "Bernadskiy, Vitaliy"]
[Black "Szpar, Milosz"]
[Result "1-0"]
[ECO "D53"]
[WhiteElo "2616"]
[BlackElo "2315"]
[Annotator "ChessBase"]
[PlyCount "77"]
[EventDate "2021.12.18"]
[EventType "swiss"]
[EventCountry "POL"]
[SourceTitle "playchess.com"]
[Source "ChessBase"]
[SourceQuality "1"]
[TimeControl "900+10"]

1. c4 {[%emt 0:00:04]} e6 {[%emt 0:07:04]} 2. Nc3 {[%emt 0:00:08]} d5 {[%emt 0:
00:02]} 3. d4 {[%emt 0:00:01]} Nf6 {[%emt 0:00:04]} 4. Bg5 {[%emt 0:00:03]} Be7
{[%emt 0:00:22]} 5. e3 {[%emt 0:00:02]} O-O {[%emt 0:00:03]} 6. Qc2 {[%emt 0:
00:59]} c6 {[%emt 0:00:11]} 7. Nf3 {[%emt 0:00:09]} Nbd7 {[%emt 0:00:07]} 8.
Bd3 {[%emt 0:00:16]} dxc4 {[%emt 0:00:21]} 9. Bxc4 {[%emt 0:00:02]} b5 {
[%emt 0:00:02]} 10. Bd3 {[%emt 0:00:18]} h6 {[%emt 0:00:28]} 11. Bh4 {[%emt 0:
00:43]} Bb7 {[%emt 0:00:25]} 12. O-O {[%emt 0:00:03]} a6 {[%emt 0:00:11]} 13.
a4 {[%emt 0:00:31]} Rc8 {[%emt 0:00:14]} 14. Qe2 {[%emt 0:00:31]} Nd5 {[%emt 0:
01:22]} 15. Bxe7 {[%emt 0:01:14]} Nxc3 {[%emt 0:00:47]} 16. bxc3 {[%emt 0:00:
30]} Qxe7 {[%emt 0:00:01]} 17. c4 {[%emt 0:00:17]} e5 {[%emt 0:00:42]} 18. e4
b4 {[%emt 0:03:00]} 19. c5 {[%emt 0:02:39]} exd4 {[%emt 0:00:15]} 20. Nxd4 {
[%emt 0:00:01]} Nxc5 {[%emt 0:00:16]} 21. Nf5 {[%emt 0:00:02]} Qe5 {[%emt 0:00:
13]} 22. f4 {[%emt 0:00:20]} Qc3 {[%emt 0:00:13]} 23. Bc4 {[%emt 0:00:31]} Rce8
{[%emt 0:00:21]} 24. e5 {[%emt 0:00:12]} Ne6 {[%emt 0:01:28]} 25. Rac1 {
[%emt 0:00:01]} Nxf4 {[%emt 0:00:39]} 26. Qg4 {[%emt 0:00:30]} Qxe5 {[%emt 0:
00:03]} 27. Rxf4 {[%emt 0:00:04]} Kh8 {[%emt 0:00:13]} 28. Rcf1 {[%emt 0:00:26]
} Bc8 {[%emt 0:00:05]} 29. Qh4 {[%emt 0:02:03]} Bxf5 {[%emt 0:00:06]} 30. Rxf5
{[%emt 0:00:03]} Qe3+ {[%emt 0:00:12]} 31. Qf2 {[%emt 0:00:02]} f6 {[%emt 0:00:
25]} 32. Bxa6 {[%emt 0:01:58]} Qa3 {[%emt 0:00:07]} 33. a5 {[%emt 0:00:45]} b3
{[%emt 0:00:07]} 34. Bd3 {[%emt 0:00:01]} b2 {[%emt 0:00:05]} 35. Bb1 {[%emt 0:
00:02]} Ra8 {[%emt 0:00:30]} 36. Qc2 {[%emt 0:00:02]} Kg8 {[%emt 0:00:12]} 37.
R5f3 {[%emt 0:00:17]} Qxa5 {[%emt 0:00:11]} 38. Qh7+ {[%emt 0:00:02]} Kf7 {
[%emt 0:00:01]} 39. Rxf6+ {[%emt 0:00:08]} 1-0